bitfinex/quotes_SOLUSD_20220311
["timestamp","ask_amount","ask_price","bid_price","bid_amount"]
[1647032074795,129.935,80.219,80.143,48.7076]
[1647032074996,129.935,80.219,80.16,18.7104]
[1647032075395,129.935,80.219,80.143,48.7076]
[1647032075603,3.04447957,80.218,80.143,48.7076]
[1647032075800,123.7,80.216,80.143,48.7076]
[1647032076197,197.91,80.21,80.143,48.7076]
[1647032076397,197.91,80.208,80.143,48.7076]
[1647032076896,64.05917422,80.21,80.143,48.7076]
[1647032076897,197.91,80.206,80.143,48.7076]
[1647032077298,3.04447957,80.205,80.143,48.7076]
[1647032077497,123.7,80.199,80.143,48.7076]
[1647032077999,123.7,80.189,80.1,62.395]
[1647032078198,74.21,80.188,80.1,62.395]
[1647032078401,123.7,80.179,80.101,54.24757076]
[1647032079200,123.7,80.179,80.11,18.722]
[1647032079400,36.6896,80.18,80.11,18.722]
[1647032079599,123.7,80.179,80.111,51.03398665]
[1647032080001,36.6896,80.18,80.111,51.03398665]
[1647032080400,6.238,80.201,80.12,18.7184]
[1647032080401,18.7174,80.19,80.12,18.7184]
[1647032080601,123.7,80.179,80.12,18.7184]
[1647032080804,123.7,80.173,80.113,6.238]
[1647032081109,123.7,80.173,80.102,24.8154]
[1647032081110,123.7,80.169,80.102,24.8154]
[1647032081301,129.939,80.169,80.102,24.8154]
[1647032081501,6.239,80.169,80.103,59.64596879]
[1647032081703,36.6916,80.17,80.11,18.7223]
[1647032081901,36.6916,80.17,80.111,6.239]
[1647032082301,123.7,80.169,80.104,6.239]
[1647032082703,123.7,80.169,80.11,18.7222]
[1647032083403,18.7216,80.17,80.11,18.7222]
[1647032083706,123.7,80.169,80.111,6.239]
[1647032083903,123.7,80.169,80.104,6.239]
[1647032084103,18.7216,80.17,80.104,6.239]
[1647032084706,123.7,80.169,80.104,6.239]
[1647032085107,123.7,80.169,80.12,18.7206]
[1647032085308,123.7,80.169,80.121,6.238]
[1647032085509,123.7,80.159,80.103,6.238]
[1647032085708,123.7,80.159,80.102,24.8154]
[1647032086110,123.7,80.157,80.102,24.8154]
[1647032087121,123.7,80.149,80.102,24.8154]
[1647032087319,74.21,80.148,80.082,6.239]
[1647032087524,123.7,80.148,80.081,6.24]
[1647032087720,24.1945,80.147,80.081,6.24]
[1647032087919,24.1945,80.147,80.072,70.42804359]
[1647032087920,24.1945,80.147,80.091,25.64047639]
[1647032088121,24.1945,80.147,80.092,6.24]
[1647032088521,24.1945,80.147,80.092,31.88047639]
[1647032089122,24.1945,80.147,80.1,18.7243]
[1647032089321,18.7243,80.16,80.102,50.70933591]
[1647032089521,6.239,80.179,80.102,50.70933591]
[1647032089723,6.239,80.185,80.103,21.72427656]
[1647032090021,23.1118,80.199,80.103,71.89159654]
[1647032090221,23.1118,80.199,80.104,65.65259654]
[1647032090421,23.1118,80.199,80.105,6.238]
[1647032090621,23.1118,80.199,80.105,71.89059654]
[1647032090821,123.7,80.198,80.106,41.12575295]
[1647032091022,123.7,80.198,80.107,6.238]
[1647032091222,23.1118,80.199,80.11,18.722]
[1647032091430,23.1118,80.199,80.111,6.237]
[1647032091824,23.1118,80.199,80.112,24.52684359]
[1647032092125,1.66525994,80.207,80.113,29.425]
[1647032092324,24.5885,80.209,80.131,60.14315497]
[1647032092525,24.5885,80.209,80.132,6.236]
[1647032093527,24.5885,80.209,80.151,57.85480832]
[1647032093727,24.5885,80.209,80.152,6.235]
[1647032094546,123.7,80.208,80.152,6.235]
[1647032094749,24.5885,80.209,80.152,6.235]
[1647032095546,98.7985,80.209,80.15,18.7107]
[1647032095746,98.7985,80.209,80.12,62.3792]
[1647032095747,74.21,80.199,80.14,18.7147]
[1647032095951,123.7,80.188,80.116,23.01]
[1647032096158,123.7,80.186,80.117,6.238]
[1647032096552,123.7,80.186,80.118,64.65496261]
[1647032096749,123.7,80.186,80.131,46.76818479]
[1647032096950,129.937,80.186,80.131,46.76818479]
[1647032097150,123.7,80.186,80.132,6.237]
[1647032097350,22.9703,80.187,80.132,6.237]
[1647032098352,22.9703,80.187,80.14,18.7155]
[1647032098554,22.9703,80.187,80.141,6.237]
[1647032098752,24.5875,80.199,80.141,6.237]
[1647032099158,24.5875,80.199,80.132,6.236]
[1647032099354,18.7132,80.21,80.15,18.7132]
[1647032099553,1.66525994,80.216,80.151,59.6541994]
[1647032099753,1.66525994,80.218,80.151,59.6541994]
[1647032100657,19.63525994,80.22,80.16,18.7105]
[1647032100857,1.66525994,80.221,80.161,123.7]
[1647032101053,1.66525994,80.221,80.16,7.37]
[1647032101054,1.66525994,80.228,80.163,123.7]
[1647032101257,1.66525994,80.236,80.165,123.7]
[1647032101455,1.66525994,80.244,80.167,123.7]
[1647032101659,1.66525994,80.244,80.171,123.7]
[1647032101856,1.66525994,80.247,80.173,123.7]
[1647032102054,1.66525994,80.258,80.173,123.7]
[1647032102258,1.66525994,80.261,80.175,123.7]
[1647032102455,1.66525994,80.265,80.177,129.34364422]
[1647032102654,1.66525994,80.271,80.191,123.7]
[1647032102856,0.39975197,80.27,80.21,18.6942]
[1647032103055,0.39975197,80.27,80.211,64.0064205]
[1647032104155,0.39975197,80.27,80.22,18.6953]
[1647032104755,0.39975197,80.27,80.2,62.3139]
[1647032104957,0.39975197,80.27,80.201,6.231]
[1647032105154,80.441,80.269,80.194,23.7744]
[1647032105354,0.39975197,80.27,80.194,23.7744]
[1647032105554,0.39975197,80.27,80.195,6.231]
[1647032105754,123.7,80.268,80.196,53.67386244]
[1647032105954,6.231,80.269,80.2,18.7001]
[1647032106155,0.39975197,80.27,80.2,18.7001]
[1647032106556,1.66525994,80.279,80.201,123.7]
[1647032106759,1.66525994,80.285,80.201,123.7]
[1647032106960,1.66525994,80.289,80.201,2.95726725]
[1647032107157,24.61695994,80.292,80.22,18.6923]
[1647032107357,6.23,80.291,80.22,24.4623]
[1647032107560,1.66525994,80.304,80.221,55.34190926]
[1647032107761,1.66525994,80.311,80.222,123.7]
[1647032107959,1.66525994,80.311,80.222,126.65726725]
[1647032108160,1.66525994,80.312,80.222,155.66743031]
[1647032108362,24.45285994,80.32,80.241,123.7]
[1647032108562,1.66525994,80.322,80.241,129.28]
[1647032108767,3.33662706,80.345,80.241,129.28]
[1647032108768,1.66525994,80.334,80.243,123.7]
[1647032109062,1.66525994,80.342,80.245,123.7]
[1647032109261,1.66525994,80.342,80.25,17.97]
[1647032109569,6.226,80.341,80.251,123.7]
[1647032109767,1.66525994,80.354,80.261,123.7]
[1647032109973,1.66525994,80.361,80.261,6.33]
[1647032110165,1.66525994,80.36,80.26,17.97]
[1647032110365,24.45651422,80.353,80.262,2.94256633]
[1647032110865,6.6066561,80.352,80.263,54.0670243]
[1647032111069,36.6524,80.35,80.27,18.6828]
[1647032111465,24.45651422,80.349,80.27,18.6828]
[1647032111665,148.15651422,80.349,80.263,54.0670243]
[1647032111969,148.15651422,80.349,80.253,72.9478]
[1647032111970,3.04447957,80.348,80.253,72.9478]
[1647032112169,129.926,80.347,80.225,47.5967]
[1647032112366,177.99757388,80.347,80.225,47.5967]
[1647032112691,123.7,80.339,80.24,18.6898]
[1647032112867,123.7,80.325,80.225,47.5967]
[1647032113069,197.91,80.321,80.225,47.5967]
[1647032113467,123.7,80.309,80.225,47.5967]
[1647032113670,6.229,80.308,80.225,47.5967]
[1647032113968,123.7,80.299,80.22,18.6943]
[1647032114168,6.229,80.298,80.22,18.6943]
[1647032114567,6.229,80.299,80.22,18.6943]
[1647032114770,129.929,80.299,80.22,18.6943]
[1647032114968,123.7,80.289,80.2,18.6972]
[1647032115168,17.97,80.28,80.2,18.6972]
[1647032116167,6.231,80.279,80.199,63.75039327]
[1647032117171,18.7009,80.27,80.2,18.6991]
[1647032118275,6.231,80.269,80.2,18.6991]
[1647032118470,6.231,80.269,80.2,21.64166633]
[1647032118669,18.7009,80.27,80.2,21.64166633]
[1647032119670,18.7009,80.27,80.201,31.9200296]
[1647032120074,18.7009,80.27,80.202,2.94256633]
[1647032120872,18.7009,80.27,80.2,18.6991]
[1647032121474,18.7009,80.27,80.201,123.7]
[1647032121672,18.6966,80.28,80.21,18.6966]
[1647032122073,6.23,80.279,80.21,18.6966]
[1647032122274,6.23,80.286,80.211,34.86259593]
[1647032122476,23.4135,80.287,80.212,51.32945208]
[1647032122679,18.6971,80.28,80.212,51.32945208]
[1647032122876,6.23,80.279,80.212,51.32945208]
[1647032124678,18.6971,80.28,80.212,51.32945208]
[1647032125677,197.91,80.279,80.198,106.7725296]
[1647032125878,123.7,80.259,80.198,74.8525]
[1647032126081,130.73,80.259,80.195,6.231]
[1647032126478,7.03,80.259,80.195,6.231]
[1647032126681,123.7,80.258,80.196,58.96419523]
[1647032127079,18.702,80.26,80.196,58.96419523]
[1647032127281,18.6988,80.27,80.197,31.9200296]
[1647032127481,18.6988,80.27,80.197,34.84587608]
[1647032127698,18.6988,80.27,80.198,2.92584648]
[1647032127902,18.6988,80.27,80.198,34.84587608]
[1647032128505,18.6988,80.27,80.2,18.6997]
[1647032129202,197.91,80.269,80.2,18.6997]
[1647032129404,123.7,80.259,80.196,58.96419523]
[1647032130507,1.66525994,80.264,80.196,58.96419523]
[1647032131103,18.7026,80.25,80.196,58.96419523]
[1647032131603,48.91245994,80.262,80.2,18.7001]
[1647032131802,47.2472,80.262,80.2,18.7001]
[1647032132003,6.232,80.263,80.2,18.7001]
[1647032132206,1.66525994,80.269,80.201,126.62584648]
[1647032132404,1.66525994,80.277,80.201,2.92584648]
[1647032132605,1.66525994,80.278,80.202,2.92584648]
[1647032132808,1.66525994,80.277,80.202,2.92584648]
[1647032133008,74.21,80.279,80.201,22.8363]
[1647032133009,1.66525994,80.274,80.201,22.8363]
[1647032133205,1.66525994,80.271,80.201,22.8363]
[1647032133406,18.7004,80.26,80.201,22.8363]
[1647032134709,197.91,80.259,80.19,18.7029]
[1647032134910,123.7,80.249,80.175,23.6175]
[1647032135513,197.91,80.249,80.177,47.92446586]
[1647032135710,197.91,80.239,80.15,62.3528]
[1647032135911,18.7089,80.23,80.17,18.7071]
[1647032136312,123.7,80.229,80.17,18.7071]
[1647032136512,123.7,80.229,80.153,2.91755599]
[1647032136813,123.7,80.229,80.154,59.27546081]
[1647032137411,123.7,80.219,80.16,18.71]
[1647032137613,203.29,80.219,80.151,23.6175]
[1647032138015,129.08,80.219,80.151,23.6175]
[1647032138215,5.38,80.219,80.151,23.6175]
[1647032138416,5.38,80.219,80.152,60.18225881]
[1647032139014,123.7,80.22,80.152,60.18225881]
[1647032139215,18.7115,80.21,80.152,60.18225881]
[1647032139715,6.235,80.227,80.153,2.91755599]
[1647032139915,48.3956,80.228,80.153,2.91755599]
[1647032140117,48.3956,80.228,80.154,31.9200296]
[1647032140321,48.3956,80.228,80.161,123.7]
[1647032140520,1.66525994,80.245,80.161,123.7]
[1647032140716,1.66525994,80.245,80.162,31.9200296]
[1647032141018,1.66525994,80.245,80.163,2.91755599]
[1647032141419,197.91,80.239,80.17,18.7077]
[1647032141619,123.7,80.237,80.17,18.7077]
[1647032142016,123.7,80.235,80.17,18.7077]
[1647032142218,123.7,80.233,80.17,18.7077]
[1647032142417,6.234,80.232,80.17,18.7077]
[1647032142618,18.7089,80.22,80.17,18.7077]
[1647032144522,18.7089,80.22,80.16,18.7097]
[1647032144721,18.7068,80.23,80.16,18.7097]
[1647032144924,18.7068,80.23,80.161,92.0141888]
[1647032145322,18.7068,80.23,80.162,31.9200296]
[1647032146122,18.7068,80.23,80.17,18.7068]
[1647032146625,123.7,80.229,80.17,18.7068]
[1647032146826,123.7,80.219,80.155,22.8615]
[1647032147124,220.6408,80.219,80.151,23.6175]
[1647032147523,123.7,80.217,80.151,23.6175]
[1647032147723,123.7,80.215,80.151,23.6175]
[1647032148226,18.7125,80.21,80.151,23.6175]
[1647032150729,22.7308,80.218,80.16,18.7101]
[1647032150927,1.66525994,80.237,80.16,18.7101]
[1647032150928,1.66525994,80.238,80.162,123.7]
[1647032151126,5.0675531,80.282,80.162,123.7]
[1647032151127,22.8171,80.237,80.162,24.6042]
[1647032151528,22.8171,80.237,80.163,123.7]
[1647032151728,22.8171,80.237,80.163,130.0]
[1647032151928,18.706,80.23,80.17,18.7055]
[1647032154159,197.91,80.229,80.162,24.6042]
[1647032154356,18.7108,80.21,80.162,24.6042]
[1647032154556,18.7108,80.21,80.161,63.40215688]
[1647032155560,17.7108,80.21,80.161,63.40215688]
[1647032155964,17.7108,80.21,80.15,18.7125]
[1647032156260,17.7108,80.21,80.143,123.7]
[1647032156463,17.7108,80.21,80.153,123.7]
[1647032156665,18.7083,80.22,80.153,123.7]
[1647032156861,18.7083,80.22,80.155,123.7]
[1647032157463,18.7083,80.22,80.156,2.9010977]
[1647032157862,18.7083,80.22,80.155,123.7]
[1647032158063,18.7083,80.22,80.154,61.51378833]
[1647032158264,18.7083,80.22,80.16,18.7107]
[1647032165467,18.7108,80.21,80.16,18.7107]
[1647032166869,18.708,80.22,80.16,18.7107]
[1647032167067,18.708,80.22,80.16,21.6117977]
[1647032167870,1.66525994,80.223,80.17,18.7057]
[1647032168068,22.7221,80.226,80.171,61.72412152]
[1647032168272,1.66525994,80.235,80.171,64.62521922]
[1647032168472,18.7032,80.24,80.172,155.6200296]
[1647032168669,18.7032,80.24,80.172,158.5211273]
[1647032168878,18.7032,80.24,80.173,2.9010977]
[1647032169072,25.74605994,80.239,80.173,2.9010977]
[1647032169269,6.232,80.238,80.18,18.7028]
[1647032169668,18.7049,80.23,80.18,18.7028]
[1647032170469,24.0808,80.239,80.18,18.7028]
[1647032170870,24.0808,80.239,80.18,21.6038977]
[1647032171270,1.66525994,80.246,80.181,123.7]
[1647032171473,18.7036,80.24,80.2,18.7015]
[1647032171669,18.7036,80.24,80.201,51.48086276]
[1647032172071,5.547,80.254,80.201,51.48086276]
[1647032172669,0.68165994,80.255,80.201,51.48086276]
[1647032172871,18.7036,80.24,80.201,51.48086276]
[1647032175474,62.3508,80.25,80.201,51.48086276]
[1647032175475,18.701,80.25,80.201,51.48086276]
[1647032176076,23.7499,80.268,80.202,126.6010977]
[1647032176275,23.7499,80.268,80.204,123.7]
[1647032176477,23.7499,80.268,80.211,123.7]
[1647032176874,23.7499,80.268,80.205,6.23]
[1647032176875,23.7499,80.268,80.212,6.23]
[1647032177074,23.7499,80.268,80.214,51.35040095]
[1647032177476,18.7,80.26,80.214,51.35040095]
[1647032178079,18.7,80.26,80.2,6.23]
[1647032179085,18.7,80.26,80.2,24.9316]
[1647032180579,18.7,80.26,80.201,123.7]
[1647032180779,18.7,80.26,80.21,18.698]
[1647032181078,23.7499,80.268,80.212,123.7]
[1647032181278,23.7499,80.268,80.211,52.11101663]
[1647032181878,23.7499,80.268,80.22,18.6973]
[1647032182079,24.5067,80.276,80.22,18.6973]
[1647032186285,18.6947,80.28,80.22,18.6973]
[1647032186787,18.6947,80.28,80.23,18.6943]
[1647032186985,18.6924,80.29,80.231,55.75691481]
[1647032188388,129.929,80.308,80.231,55.75691481]
[1647032188389,6.229,80.308,80.232,123.7]
[1647032188587,18.6906,80.3,80.241,123.7]
[1647032188787,5.0675531,80.337,80.241,123.7]
[1647032188788,6.228,80.316,80.241,123.7]
[1647032189087,6.228,80.336,80.243,123.7]
[1647032189290,6.227,80.337,80.245,123.7]
[1647032189488,17.96,80.35,80.244,24.8834]
[1647032189489,24.908,80.34,80.251,123.7]
[1647032189686,15.47101569,80.336,80.253,123.7]
[1647032190088,6.79768509,80.335,80.253,123.7]
[1647032190288,6.227,80.334,80.253,123.7]
[1647032190487,6.227,80.338,80.254,2.89545308]
[1647032190892,129.926,80.348,80.254,2.89545308]
[1647032191088,18.6832,80.33,80.27,18.6814]
[1647032191289,6.226,80.329,80.271,73.98275208]
[1647032191892,18.6832,80.33,80.271,73.98275208]
[1647032193089,18.6832,80.33,80.28,18.6826]
[1647032193691,18.6832,80.33,80.271,73.98275208]
[1647032196118,18.6832,80.33,80.28,18.6835]
[1647032196520,18.6832,80.33,80.271,73.98275208]
[1647032196820,18.6881,80.31,80.249,23.7392]
[1647032197619,18.6881,80.31,80.253,64.30931784]
[1647032198221,18.6881,80.31,80.26,18.6875]
[1647032200524,18.686,80.32,80.26,18.6875]
[1647032200725,18.686,80.32,80.27,18.6852]
[1647032200926,18.686,80.32,80.271,60.90337051]
[1647032202427,48.4642,80.328,80.28,18.6835]
[1647032203828,18.6849,80.32,80.271,60.90337051]
[1647032205231,48.4642,80.328,80.28,18.6835]
[1647032205531,48.4642,80.328,80.271,60.90337051]
[1647032206132,48.4642,80.328,80.261,23.631]
[1647032206332,18.6849,80.32,80.27,18.6853]
[1647032214647,48.4642,80.328,80.27,18.6853]
[1647032215138,48.4642,80.328,80.271,123.7]
[1647032215344,48.4642,80.328,80.28,18.6819]
[1647032216244,48.4642,80.328,80.281,2.87921584]
[1647032216443,3.33662706,80.356,80.29,18.6787]
[1647032216645,3.33662706,80.352,80.29,18.6787]
[1647032216843,3.33662706,80.353,80.29,18.6787]
[1647032217043,3.33662706,80.354,80.29,18.6787]
[1647032217245,3.33662706,80.353,80.29,18.6787]
[1647032217448,0.39134647,80.352,80.291,63.71049224]
[1647032217645,18.6787,80.35,80.291,63.71049224]
[1647032218045,6.79646788,80.349,80.291,63.71049224]
[1647032218446,6.79646788,80.351,80.291,63.71049224]
[1647032218847,18.68,80.34,80.291,63.71049224]
[1647032219046,3.72797353,80.352,80.291,63.71049224]
[1647032219247,6.79611589,80.351,80.291,63.71049224]
[1647032219447,6.79611589,80.351,80.3,18.6783]
[1647032219648,10.13274295,80.355,80.3,18.6783]
[1647032219847,6.79611589,80.355,80.3,18.6783]
[1647032220150,6.79611589,80.354,80.3,18.6783]
[1647032220348,6.79611589,80.355,80.3,18.6783]
[1647032220750,18.6791,80.35,80.3,18.6783]
[1647032220949,18.6791,80.35,80.29,18.6804]
[1647032221149,6.224,80.349,80.29,18.6804]
[1647032221348,13.02020271,80.349,80.29,18.6804]
[1647032221577,123.7,80.348,80.284,24.0308]
[1647032221778,28.8105,80.347,80.284,24.0308]
[1647032221976,29.38270271,80.347,80.284,79.01603688]
[1647032222177,6.79620271,80.346,80.284,79.01603688]
[1647032222378,123.7,80.345,80.284,24.0308]
[1647032222580,123.7,80.339,80.27,42.3706]
[1647032222782,136.72220271,80.338,80.27,42.3706]
[1647032222979,6.79620271,80.337,80.27,42.3706]
[1647032223280,6.226,80.336,80.27,42.3706]
[1647032223579,123.7,80.319,80.26,18.6874]
[1647032223780,129.38,80.319,80.26,18.6874]
[1647032223979,129.38,80.319,80.247,22.5726]
[1647032224182,146.2865,80.318,80.247,22.5726]
[1647032224581,18.6897,80.31,80.25,18.6903]
[1647032225284,18.6897,80.31,80.25,21.56951577]
[1647032225481,18.6897,80.31,80.25,18.6903]
[1647032225883,22.5865,80.318,80.251,123.7]
[1647032226080,22.5865,80.318,80.27,18.6844]
[1647032226281,22.5865,80.318,80.271,48.63303751]
[1647032226481,6.227,80.345,80.272,123.7]
[1647032226681,29.9206,80.345,80.272,148.6247]
[1647032226882,23.6936,80.345,80.272,148.6247]
[1647032227081,18.6834,80.33,80.28,18.6817]
[1647032228383,18.6809,80.34,80.29,18.6809]
[1647032235689,18.6821,80.33,80.282,24.0448]
[1647032238898,18.6821,80.33,80.283,6.226]
[1647032239395,18.6821,80.33,80.29,18.6812]
[1647032239597,23.9852,80.334,80.29,18.6812]
[1647032240422,23.9852,80.334,80.291,6.224]
[1647032243228,23.9852,80.334,80.29,18.6812]
[1647032243828,18.6821,80.33,80.28,18.6829]
[1647032245228,23.9852,80.334,80.28,18.6829]
[1647032245427,23.9852,80.334,80.281,6.226]
[1647032245628,23.9852,80.334,80.29,18.6787]
[1647032245830,23.9852,80.334,80.291,6.224]
[1647032246030,23.9852,80.334,80.284,123.7]
[1647032246229,23.9852,80.334,80.285,129.924]
[1647032246428,23.9852,80.334,80.285,132.80322889]
[1647032246628,6.224,80.359,80.285,132.80322889]
[1647032246629,6.224,80.359,80.3,18.6779]
[1647032246836,123.7,80.389,80.3,18.6779]
[1647032246837,3.33662706,80.368,80.302,185.74383694]
[1647032247029,3.33662706,80.371,80.304,123.7]
[1647032247329,15.50296283,80.37,80.305,129.923]
[1647032247529,6.79402198,80.369,80.306,24.424]
[1647032247729,6.79402198,80.369,80.307,6.223]
[1647032247932,15.50296283,80.371,80.307,6.223]
[1647032248231,48.6845,80.375,80.307,6.223]
[1647032248232,48.6845,80.375,80.311,123.7]
[1647032248435,48.6845,80.375,80.313,123.7]
[1647032248630,48.6845,80.375,80.315,123.7]
[1647032248836,48.6845,80.375,80.316,6.223]
[1647032249236,48.6845,80.375,80.33,18.6695]
[1647032250236,48.6845,80.375,80.331,65.62783863]
[1647032250435,48.6845,80.375,80.34,18.6685]
[1647032252244,18.6689,80.39,80.34,18.6685]
[1647032252440,18.6671,80.4,80.34,18.6685]
[1647032252838,18.6671,80.4,80.341,6.221]
[1647032253038,18.6671,80.4,80.35,18.666]
[1647032253840,22.7027,80.401,80.35,18.666]
[1647032254240,22.7027,80.401,80.351,6.22]
[1647032254441,6.22,80.418,80.36,18.6624]
[1647032254642,6.219,80.422,80.36,18.6624]
[1647032254845,6.79067373,80.421,80.36,18.6624]
[1647032255043,15.49842762,80.421,80.361,62.68741728]
[1647032255241,18.6624,80.42,80.361,62.68741728]
[1647032256144,18.6624,80.42,80.37,18.6609]
[1647032256342,18.6624,80.42,80.371,6.219]
[1647032256542,23.5587,80.43,80.371,6.219]
[1647032256543,42.2184,80.43,80.371,6.219]
[1647032256744,42.2184,80.43,80.366,6.218]
[1647032257144,42.2184,80.43,80.364,123.7]
[1647032257344,42.2184,80.43,80.365,129.919]
[1647032258045,23.5587,80.43,80.38,18.6602]
[1647032258245,18.6573,80.44,80.382,123.7]
[1647032258445,23.7501,80.446,80.384,123.7]
[1647032258654,23.7501,80.446,80.385,129.916]
[1647032258846,23.7501,80.446,80.386,46.77388943]
[1647032259045,23.7501,80.446,80.387,129.916]
[1647032259845,23.7501,80.446,80.387,6.216]
[1647032260249,23.7501,80.446,80.39,18.6556]
[1647032260448,23.7501,80.446,80.391,6.216]
[1647032262755,18.6525,80.46,80.4,18.6541]
[1647032262951,123.7,80.459,80.401,6.216]
[1647032263157,18.6525,80.46,80.388,30.176]
[1647032263352,80.426,80.459,80.388,23.96]
[1647032263654,0.3611954,80.448,80.386,46.77388943]
[1647032263854,154.5175954,80.448,80.386,46.77388943]
[1647032264052,30.8175954,80.448,80.386,46.77388943]
[1647032264854,18.6593,80.44,80.386,46.77388943]
[1647032265253,123.7,80.439,80.386,46.77388943]
[1647032265855,154.5175954,80.448,80.386,46.77388943]
[1647032267156,18.6603,80.43,80.386,46.77388943]
[1647032268157,30.4564,80.448,80.386,46.77388943]
[1647032268357,18.6573,80.44,80.387,6.216]
[1647032268757,18.1573,80.44,80.387,6.216]
[1647032269160,18.59486758,80.44,80.387,6.216]
[1647032269356,18.1573,80.44,80.387,6.216]
[1647032269959,18.1573,80.44,80.386,46.77388943]
[1647032270558,6.216,80.439,80.386,46.77388943]
[1647032270758,18.6603,80.43,80.386,46.77388943]
[1647032273870,18.6603,80.43,80.381,6.218]
[1647032274088,18.6603,80.43,80.37,18.6611]
[1647032274089,18.6603,80.43,80.371,6.218]
[1647032274296,23.1134,80.429,80.371,6.218]
[1647032274586,18.6638,80.42,80.371,6.218]
[1647032274787,18.6638,80.42,80.372,51.30595838]
[1647032280897,23.1134,80.429,80.38,18.6603]
[1647032281697,22.6134,80.429,80.38,18.6603]
[1647032282095,22.6134,80.429,80.372,51.30595838]
[1647032282096,18.6615,80.42,80.372,51.30595838]
[1647032285103,22.6134,80.429,80.38,18.6599]
[1647032285508,24.1906,80.438,80.381,126.57175178]
[1647032285710,24.4945,80.459,80.381,126.57175178]
[1647032285905,6.78638295,80.458,80.383,123.7]
[1647032286104,24.4945,80.459,80.383,123.7]
[1647032286311,24.4945,80.459,80.384,2.87175178]
[1647032286610,24.4945,80.459,80.386,123.7]
[1647032286809,24.4945,80.459,80.401,62.84048431]
[1647032288207,24.4945,80.459,80.41,18.6531]
[1647032290712,23.9945,80.459,80.41,18.6531]
[1647032291714,123.7,80.449,80.401,62.84048431]
[1647032292113,123.7,80.458,80.401,62.84048431]
[1647032292312,1.66749378,80.437,80.401,62.84048431]
[1647032292740,1.66749378,80.442,80.401,62.84048431]
[1647032293016,1.66749378,80.443,80.401,62.84048431]
[1647032294617,1.66749378,80.447,80.401,62.84048431]
[1647032294818,1.66749378,80.447,80.403,123.7]
[1647032295019,1.66749378,80.461,80.405,123.7]
[1647032295321,1.66749378,80.463,80.411,123.7]
[1647032295619,1.66749378,80.463,80.413,123.7]
[1647032295821,1.66749378,80.463,80.415,123.7]
[1647032296021,1.66749378,80.466,80.416,6.215]
[1647032296219,1.71225101,80.47,80.416,6.215]
[1647032296419,1.71225101,80.47,80.417,123.7]
[1647032296420,0.04475723,80.47,80.417,123.7]
[1647032296618,0.04475723,80.47,80.421,123.7]
[1647032296819,0.04475723,80.47,80.423,123.7]
[1647032297027,0.04475723,80.47,80.426,60.48708499]
[1647032297219,0.04475723,80.47,80.427,6.215]
[1647032297825,0.04475723,80.47,80.43,18.6459]
[1647032298023,0.04475723,80.47,80.431,6.215]
[1647032298222,0.04475723,80.47,80.427,9.08675178]
[1647032298424,0.04475723,80.47,80.428,123.7]
[1647032298625,0.04475723,80.47,80.43,123.7]
[1647032298825,0.04475723,80.47,80.432,123.7]
[1647032299027,0.04475723,80.47,80.426,60.48708499]
[1647032299028,0.04475723,80.47,80.434,123.7]
[1647032299224,0.04475723,80.47,80.441,123.7]
[1647032299426,0.04475723,80.47,80.443,123.7]
[1647032299626,0.04475723,80.47,80.445,123.7]
[1647032299828,0.04475723,80.47,80.446,6.214]
[1647032300659,0.04475723,80.47,80.45,18.6401]